{"text_format":"1","workbook":"xlsx","n_sheets":4,"sheets":["План","состав","Лист3","состав (2)"],"not_rendered":{"charts":0,"images":0,"macros":1,"external_links":0,"defined_names":1,"comments":0,"pivot_tables":0},"unopened":[],"bounds":{"document_bytes":16777216,"sheet_cells":100000,"rows_first":2000,"rows_last":500,"rows_between":2000,"halvings":0,"cell_chars":16384,"cell_head_chars":4096},"cells_cut":0,"cells_raw":0,"read":"whole","date_system":"1900"}

{"sheet":"План","index":0,"n_rows":49,"n_cols":184,"rows_kept":49,"cut":false,"hidden":false,"merged":[[12,3,12,86]]}
[]
[]
[]
[]
[]
[]
[]
[]
[]
[]
[null,null,null,"- выделены последние изменения (по доп. заказам)"]
[]
[null,null,null,{"$f":"\"График производства (операция \"&VLOOKUP($K$14,{\"МО\",\"Мех.обработка\";\"Лак\",\"Малярная\";\"СВ\",\"Сварочная\";\"СБ\",\"Сборка\";\"УП\",\"Упаковка\"},2,0)&\" )\"&\" \"&TEXT($DL$15,\"ММММ ГГГГ\")&\"г.\"","v":"График производства (операция Сборка ) Август 2016г."},null,null,null,null,null,null,null,null,null,null,null,null,null,null,null,null,null,null,null,null,null,null,null,null,null,null,null,null,null,null,null,null,null,null,null,null,null,null,null,null,null,null,null,null,null,null,null,null,null,null,null,null,null,null,null,null,null,null,null,null,null,null,null,null,null,null,null,null,null,null,null,null,null,null,null,null,null,null,null,null,null,null,null,null,null,null,null,null,null,null,null,null,null,null,null,null,null,null,null,null,null,null,null,null,null,null,null,null,null,null,null,null,null,null,null,null,null,null,null,null,null,null,null,null,null,null,null,null,null,null,null,null,null,null,null,null," "]
[null,null,null,null,null,null,null,null,null,null,"СБ"]
[null,"Цех","Обозначение","Наименование",null,"Долг","август","доп+","доп-","Итого по плану","Проверка",null,null,null,null,"2016-07-26","2016-07-26","2016-07-26","2016-07-26","2016-07-26","2016-07-26","2016-07-27","2016-07-27","2016-07-27","2016-07-27","2016-07-27","2016-07-27","2016-07-28","2016-07-28","2016-07-28","2016-07-28","2016-07-28","2016-07-28","2016-07-29","2016-07-29","2016-07-29","2016-07-29","2016-07-29","2016-07-29","2016-08-01","2016-08-01","2016-08-01","2016-08-01","2016-08-01","2016-08-01","2016-08-02","2016-08-02","2016-08-02","2016-08-02","2016-08-02","2016-08-02","2016-08-03","2016-08-03","2016-08-03","2016-08-03","2016-08-03","2016-08-03","2016-08-04","2016-08-04","2016-08-04","2016-08-04","2016-08-04","2016-08-04","2016-08-05","2016-08-05","2016-08-05","2016-08-05","2016-08-05","2016-08-05","2016-08-08","2016-08-08","2016-08-08","2016-08-08","2016-08-08","2016-08-08","2016-08-09","2016-08-09","2016-08-09","2016-08-09","2016-08-09","2016-08-09","2016-08-10","2016-08-10","2016-08-10","2016-08-10","2016-08-10","2016-08-10","2016-08-11","2016-08-11","2016-08-11","2016-08-11","2016-08-11","2016-08-11","2016-08-12","2016-08-12","2016-08-12","2016-08-12","2016-08-12","2016-08-12","2016-08-15","2016-08-15","2016-08-15","2016-08-15","2016-08-15","2016-08-15","2016-08-16","2016-08-16","2016-08-16","2016-08-16","2016-08-16","2016-08-16","2016-08-17","2016-08-17","2016-08-17","2016-08-17","2016-08-17","2016-08-17","2016-08-18","2016-08-18","2016-08-18","2016-08-18","2016-08-18","2016-08-18","2016-08-19","2016-08-19","2016-08-19","2016-08-19","2016-08-19","2016-08-19","2016-08-22","2016-08-22","2016-08-22","2016-08-22","2016-08-22","2016-08-22","2016-08-23","2016-08-23","2016-08-23","2016-08-23","2016-08-23","2016-08-23","2016-08-24","2016-08-24","2016-08-24","2016-08-24","2016-08-24","2016-08-24","2016-08-25","2016-08-25","2016-08-25","2016-08-25","2016-08-25","2016-08-25","2016-08-26","2016-08-26","2016-08-26","2016-08-26","2016-08-26","2016-08-26","2016-08-29","2016-08-29","2016-08-29","2016-08-29","2016-08-29","2016-08-29","2016-08-30","2016-08-30","2016-08-30","2016-08-30","2016-08-30","2016-08-30","2016-08-31","2016-08-31","2016-08-31","2016-08-31","2016-08-31","2016-08-31","2016-09-01","2016-09-01","2016-09-01","2016-09-01","2016-09-01","2016-09-01",{"$f":"\"Предварительный план \"&TEXT(EOMONTH($DN$15,1),\"[$-FC19] ММММ\")","v":"Предварительный план  сентября"}]
[null,null,null,null,null,null,null,null,null,null,null,"МО","МО","МО","МО","МО","Лак","СВ","Лак","СБ","УП","МО","Лак","СВ","Лак","СБ","УП","МО","Лак","СВ","Лак","СБ","УП","МО","Лак","СВ","Лак","СБ","УП","МО","Лак","СВ","Лак","СБ","УП","МО","Лак","СВ","Лак","СБ","УП","МО","Лак","СВ","Лак","СБ","УП","МО","Лак","СВ","Лак","СБ","УП","МО","Лак","СВ","Лак","СБ","УП","МО","Лак","СВ","Лак","СБ","УП","МО","Лак","СВ","Лак","СБ","УП","МО","Лак","СВ","Лак","СБ","УП","МО","Лак","СВ","Лак","СБ","УП","МО","Лак","СВ","Лак","СБ","УП","МО","Лак","СВ","Лак","СБ","УП","МО","Лак","СВ","Лак","СБ","УП","МО","Лак","СВ","Лак","СБ","УП","МО","Лак","СВ","Лак","СБ","УП","МО","Лак","СВ","Лак","СБ","УП","МО","Лак","СВ","Лак","СБ","УП","МО","Лак","СВ","Лак","СБ","УП","МО","Лак","СВ","Лак","СБ","УП","МО","Лак","СВ","Лак","СБ","УП","МО","Лак","СВ","Лак","СБ","УП","МО","Лак","СВ","Лак","СБ","УП","МО","Лак","СВ","Лак","СБ","УП","МО","Лак","СВ","Лак","СБ","УП","МО","Лак","СВ","Лак","СБ","УП"]
[null,null,null,null,null,null,null,null,null,null,null,null,null,null,null,{"$f":"TEXT(P15,\"ММММ\")","v":"Июль"},"Июль","Июль","Июль",{"$f":"TEXT(T15,\"ММММ\")","v":"Июль"},{"$f":"TEXT(U15,\"ММММ\")","v":"Июль"},"Июль","Июль","Июль","Июль","Июль","Июль","Июль","Июль","Июль","Июль","Июль","Июль","Июль","Июль","Июль","Июль","Июль","Июль","Август","Август","Август","Август","Август","Август","Август","Август","Август","Август","Август","Август","Август","Август","Август","Август","Август","Август","Август","Август","Август","Август","Август","Август","Август","Август","Август","Август","Август","Август","Август","Август","Август","Август","Август","Август","Август","Август","Август","Август","Август","Август","Август","Август","Август",{"$f":"TEXT(CG15,\"ММММ\")","v":"Август"},"Август","Август","Август","Август","Август","Август","Август","Август","Август","Август","Август","Август","Август","Август","Август","Август","Август","Август","Август","Август","Август","Август","Август","Август","Август","Август","Август","Август","Август","Август","Август","Август","Август","Август","Август","Август","Август","Август","Август","Август","Август","Август","Август","Август","Август","Август","Август","Август","Август","Август","Август","Август","Август","Август","Август","Август","Август","Август","Август","Август","Август","Август","Август",{"$f":"TEXT(ES15,\"ММММ\")","v":"Август"},"Август","Август","Август","Август","Август","Август","Август","Август","Август","Август","Август","Август","Август","Август","Август","Август","Август","Август","Август","Август","Август","Август","Август","Август","Август","Август","Август","Август","Сентябрь","Сентябрь","Сентябрь","Сентябрь","Сентябрь","Сентябрь"]
[null,"м"]
[null,20,"9.00.01.000.000","деталь 1",null,null,{"$f":"SUMIF($P$16:$GA$16,$K$14,$P19:$GA19)","v":8},null,null,{"$f":"SUM(F19:I19)","v":8},{"$f":"SUMIF($P$16:$GA$16,$K$14,$P19:$GA19)","v":8},null,null,null,null,null,null,null,null,null,null,null,null,null,null,null,null,null,null,null,null,null,null,null,null,null,null,null,null,null,null,null,null,null,null,null,null,null,null,null,null,null,null,null,null,null,null,null,null,null,null,null,null,null,null,null,null,null,null,null,null,null,null,null,null,null,null,null,null,null,null,null,null,null,null,null,null,null,null,null,null,null,null,null,null,null,null,null,null,null,null,null,null,null,null,null,null,null,null,null,null,null,null,null,null,null,null,null,null,null,null,null,null,null,null,null,null,null,null,null,null,null,null,null,null,null,null,null,null,null,null,null,null,null,null,8,null,null,null,null,null,null,null,null,null,null,null,null,null,null,null,null,null,null,null,null,null,null,null,null,null,null,null,null,null,null,null,null,null,null,null,null,null,8]
[null,20,"9.00.01.000.001","деталь 2",null,null,{"$f":"SUMIF($P$16:$GA$16,$K$14,$P20:$GA21)","v":0},null,null,0,{"$f":"SUMIF($P$16:$GA$16,$K$14,$P20:$GA21)","v":0}]
[null,20,"9.00.01.000.002","деталь 3",null,null,{"$f":"SUMIF($P$16:$GA$16,$K$14,$P21:$GA21)","v":37},null,null,37,{"$f":"SUMIF($P$16:$GA$16,$K$14,$P21:$GA21)","v":37},null,null,null,null,null,null,null,null,1,null,null,null,null,null,3,null,null,null,null,null,8,null,null,null,null,null,null,null,null,null,null,null,null,null,null,null,null,null,12,null,null,null,null,null,null,null,null,null,null,null,null,null,null,null,null,null,null,null,null,null,null,null,null,null,null,null,null,null,null,null,null,null,null,null,null,null,null,null,null,null,null,null,null,null,null,null,null,null,null,null,null,null,null,null,null,null,null,null,null,null,null,null,null,null,null,null,null,null,null,null,null,null,null,null,null,null,null,null,null,null,null,null,null,null,null,null,null,null,null,null,null,null,null,null,13,null,null,null,null,null,null,null,null,null,null,null,null,null,null,null,null,null,null,null,null,null,null,null,null,null,null,null,null,null,null,null,null,null,null,null,null,null,13]
[null,20,"9.00.01.000.003","деталь 4",null,null,{"$f":"SUMIF($P$16:$GA$16,$K$14,$P22:$GA25)","v":25},null,null,25,{"$f":"SUMIF($P$16:$GA$16,$K$14,$P22:$GA25)","v":25},null,null,null,null,null,null,null,null,1,null,null,null,null,null,3,null,null,null,null,null,8,null,null,null,null,null,null,null,null,null,null,null,null,null,null,null,null,null,12,null,null,null,null,null,null,null,null,null,null,null,null,null,null,null,null,null,null,null,null,null,null,null,null,null,null,null,null,null,null,null,null,null,null,null,null,null,null,null,null,null,null,null,null,null,null,null,null,null,null,null,null,null,null,null,null,null,null,null,null,null,null,null,null,null,null,null,null,null,null,null,null,null,null,null,null,null,null,null,null,null,null,null,null,null,null,null,null,null,null,null,null,null,null,null,1,null,null,null,null,null,null,null,null,null,null,null,null,null,null,null,null,null,null,null,null,null,null,null,null,null,null,null,null,null,null,null,null,null,null,null,null,null,1]
[null,20,"9.00.01.000.004","деталь 5",null,null,24,null,null,24,24,null,null,null,null,null,null,null,null,1,null,null,null,null,null,3,null,null,null,null,null,8,null,null,null,null,null,null,null,null,null,null,null,null,null,null,null,null,null,12]
[null,20,"9.00.01.000.005","деталь 6",null,null,24,null,null,24,24,null,null,null,null,null,null,null,null,1,null,null,null,null,null,3,null,null,null,null,null,8,null,null,null,null,null,null,null,null,null,null,null,null,null,null,null,null,null,12]
[null,20,"9.00.01.000.006","деталь 7",null,null,24,null,null,24,24,null,null,null,null,null,null,null,null,1,null,null,null,null,null,3,null,null,null,null,null,8,null,null,null,null,null,null,null,null,null,null,null,null,null,null,null,null,null,12]
[null,20,"9.00.01.000.007","деталь 8",null,null,24,null,null,24,24,null,null,null,null,null,null,null,null,1,null,null,null,null,null,3,null,null,null,null,null,8,null,null,null,null,null,null,null,null,null,null,null,null,null,null,null,null,null,12]
[null,20,"9.00.01.000.008","деталь 9",null,null,24,null,null,24,24,null,null,null,null,null,null,null,null,1,null,null,null,null,null,3,null,null,null,null,null,8,null,null,null,null,null,null,null,null,null,null,null,null,null,null,null,null,null,12]
[null,20,"9.00.01.000.009","деталь 10",null,null,24,null,null,24,24,null,null,null,null,null,null,null,null,1,null,null,null,null,null,3,null,null,null,null,null,8,null,null,null,null,null,null,null,null,null,null,null,null,null,null,null,null,null,12]
[null,20,"9.00.01.000.010","деталь 11",null,null,24,null,null,24,24,null,null,null,null,null,null,null,null,1,null,null,null,null,null,3,null,null,null,null,null,8,null,null,null,null,null,null,null,null,null,null,null,null,null,null,null,null,null,12]
[null,20,"9.00.01.000.011","деталь 12",null,null,24,null,null,24,24,null,null,null,null,null,null,null,null,1,null,null,null,null,null,3,null,null,null,null,null,8,null,null,null,null,null,null,null,null,null,null,null,null,null,null,null,null,null,12]
[null,20,"9.00.01.000.012","деталь 13",null,null,24,null,null,24,24,null,null,null,null,null,null,null,null,1,null,null,null,null,null,3,null,null,null,null,null,8,null,null,null,null,null,null,null,null,null,null,null,null,null,null,null,null,null,12]
[null,20,"9.00.01.000.013","деталь 14",null,null,24,null,null,24,24,null,null,null,null,null,null,null,null,1,null,null,null,null,null,3,null,null,null,null,null,8,null,null,null,null,null,null,null,null,null,null,null,null,null,null,null,null,null,12]
[null,20,"9.00.01.000.014","деталь 15",null,null,24,null,null,24,24,null,null,null,null,null,null,null,null,1,null,null,null,null,null,3,null,null,null,null,null,8,null,null,null,null,null,null,null,null,null,null,null,null,null,null,null,null,null,12]
[null,20,"9.00.01.000.015","деталь 16",null,null,24,null,null,24,24,null,null,null,null,null,null,null,null,1,null,null,null,null,null,3,null,null,null,null,null,8,null,null,null,null,null,null,null,null,null,null,null,null,null,null,null,null,null,12]
[null,20,"9.00.01.000.016","деталь 17",null,null,24,null,null,24,24,{"$f":"SUMIF($P$16:$GA$16,$K$14,$P35:$GA36)","v":24},24,24,24,null,null,null,null,1,null,null,null,null,null,3,null,null,null,null,null,8,null,null,null,null,null,null,null,null,null,null,null,null,null,null,null,null,null,12]
[null,20,"10.00.000.000","изделие 1",null,null,24,null,null,24,24,null,null,null,null,null,null,null,null,1,null,null,null,null,null,3,null,null,null,null,null,8,null,null,null,null,null,null,null,null,null,null,null,null,null,null,null,null,null,12]
[null,20,"10.00.000.001","изделие 2",null,null,24,null,null,24,24,null,null,null,null,null,null,null,null,1,null,null,null,null,null,3,null,null,null,null,null,8,null,null,null,null,null,null,null,null,null,null,null,null,null,null,null,null,null,12]
[null,20,"10.00.000.002","изделие 3",null,null,24,null,null,24,24,null,null,null,null,null,null,null,null,1,null,null,null,null,null,3,null,null,null,null,null,8,null,null,null,null,null,null,null,null,null,null,null,null,null,null,null,null,null,12]
[null,20,"10.00.000.003","изделие 4",null,null,24,null,null,24,24,null,null,null,null,null,null,null,null,1,null,null,null,null,null,3,null,null,null,null,null,8,null,null,null,null,null,null,null,null,null,null,null,null,null,null,null,null,null,12]
[null,20,"10.00.000.004","изделие 5",null,null,24,null,null,24,24,null,null,null,null,null,null,null,null,1,null,null,null,null,null,3,null,null,null,null,null,8,null,null,null,null,null,null,null,null,null,null,null,null,null,null,null,null,null,12]
[null,20,"10.00.000.005","изделие 6",null,null,24,null,null,24,24,null,null,null,null,null,null,null,null,1,null,null,null,null,null,3,null,null,null,null,null,8,null,null,null,null,null,null,null,null,null,null,null,null,null,null,null,null,null,12]
[null,20,"10.00.000.006","изделие 7",null,null,35,null,null,35,35,null,null,null,null,null,null,null,null,1,null,null,null,null,null,3,null,null,null,null,null,8,null,null,null,null,null,null,null,null,null,null,null,null,null,null,null,null,null,12,null,null,null,null,null,null,null,null,null,null,null,null,null,null,null,null,null,3,3,null,null,null,null,null,null,null,null,null,null,null,null,null,null,null,null,null,null,null,null,null,null,null,null,null,null,null,null,null,null,null,null,null,null,null,null,null,null,null,null,null,null,null,null,null,null,null,null,null,null,null,null,null,null,null,null,null,null,null,null,null,null,null,null,null,null,null,null,null,null,null,null,null,null,null,null,8,null,null,null,null,null,null,null,null,null,null,null,null,null,null,null,null,null,null,null,null,null,null,null,null,null,null,null,null,null,null,null,null,null,null,null,null,null,8]
[null,20,"10.00.000.007","изделие 8",null,null,28,null,null,28,28,null,null,null,null,null,null,null,null,1,null,null,null,null,null,3,null,null,null,null,null,8,null,null,null,null,null,null,null,null,null,null,null,null,null,null,null,null,null,12,null,null,null,null,null,null,null,null,null,null,null,null,null,null,null,null,null,null,null,null,null,null,null,null,null,null,null,null,null,null,null,null,null,null,null,null,null,null,null,null,null,null,null,null,null,null,null,null,null,null,null,null,null,null,null,null,null,null,null,null,null,null,null,null,null,null,null,null,null,null,null,null,null,null,null,null,null,null,null,null,null,null,null,null,null,null,null,null,null,null,null,null,null,null,null,4,null,null,null,null,null,null,null,null,null,null,null,null,null,null,null,null,null,null,null,null,null,null,null,null,null,null,null,null,null,null,null,null,null,null,null,null,null,4]
[null,20,"10.00.000.008","изделие 9",null,null,30,null,null,30,30,null,null,null,null,null,null,null,null,1,null,null,null,null,null,3,null,null,null,null,null,8,null,null,null,null,null,null,null,null,null,null,null,null,null,null,null,null,null,12,null,null,null,null,null,null,null,null,null,null,null,null,null,null,null,null,null,null,null,null,null,null,null,null,null,null,null,null,null,null,null,null,null,null,null,null,null,null,null,null,null,null,null,null,null,null,null,null,null,null,null,null,null,null,null,null,null,null,null,null,null,null,null,null,null,null,null,null,null,null,null,null,null,null,null,null,null,null,null,null,null,null,null,null,null,null,null,null,null,null,null,null,null,null,null,6,null,null,null,null,null,null,null,null,null,null,null,null,null,null,null,null,null,null,null,null,null,null,null,null,null,null,null,null,null,null,null,null,null,null,null,null,null,6]
[null,20,"10.00.000.009","изделие 10",null,null,24,null,null,24,24,null,null,null,null,null,null,null,null,1,null,null,null,null,null,3,null,null,null,null,null,8,null,null,null,null,null,null,null,null,null,null,null,null,null,null,null,null,null,12,null,null,null,null,null,null,null,null,null,null,null,null,null,null,null,null,null,null,null,null,null,null,null,null,null,null,null,null,null,null,null,null,null,null,null,null,null,null,null,null,null,null,null,null,null,null,null,null,null,null,null,null,null,null,null,null,null,null,null,null,null,null,null,null,null,null,null,null,null,null,null,null,null,null,null,null,null,null,null,null,null,null,null,null,null,null,null,null,null,null,null,null,null,null,null,null,null,null,null,null,null,null,null,null,null,null,null,null,null,null,null,null,null,null,null,null,null,null,null,null,null,null,null,null,null,null,null,null,null,null,null,null,null,1]
[null,20,"10.00.000.010","изделие 11",null,null,24,null,null,24,24,null,null,null,null,null,null,null,null,1,null,null,null,null,null,3,null,null,null,null,null,8,null,null,null,null,null,null,null,null,null,null,null,null,null,null,null,null,null,12]
[null,20,"10.00.000.011","изделие 12",null,null,{"$f":"SUMIF($P$16:$GA$16,$K$14,$P47:$GA49)","v":24},null,null,24,{"$f":"SUMIF($P$16:$GA$16,$K$14,$P47:$GA49)","v":24},null,null,null,null,null,null,null,null,1,null,null,null,null,null,3,null,null,null,null,null,8,null,null,null,null,null,null,null,null,null,null,null,null,null,null,null,null,null,12]
[null,20,"10.00.000.012","изделие 13",null,null,{"$f":"SUMIF($P$16:$GA$16,$K$14,$P48:$GA49)","v":74},null,null,74,{"$f":"SUMIF($P$16:$GA$16,$K$14,$P48:$GA49)","v":74},null,null,null,null,null,null,null,null,1,null,null,null,null,null,3,null,null,null,null,null,8,null,null,null,null,null,null,null,null,null,null,null,null,null,null,null,null,null,12,null,null,null,null,null,null,null,null,null,null,null,null,null,null,null,null,null,null,null,null,null,null,null,null,null,null,null,null,null,null,null,null,null,null,null,null,null,null,null,null,null,null,null,null,null,null,null,null,null,null,null,null,null,null,null,null,null,null,null,null,null,null,null,null,null,null,null,null,null,null,null,null,null,null,null,null,null,25,25,null,null,null,null,null,null,null,null,null,null,null,null,null,null,null,null,null,null,null,null,null,null,null,null,null,null,null,null,25,null,null,null,null,null,null,null,null,null,null,null,null,null,null,null,null,null,null,null,null,null,null,null,null,null,50]
[null,20,"10.00.000.013","изделие 14",null,null,{"$f":"SUMIF($P$16:$GA$16,$K$14,$P49:$GA49)","v":24},null,null,{"$f":"SUM(F49:I49)","v":24},{"$f":"SUMIF($P$16:$GA$16,$K$14,$P49:$GA49)","v":24},null,null,null,null,null,null,null,null,1,null,null,null,null,null,3,null,null,null,null,null,8,null,null,null,null,null,null,null,null,null,null,null,null,null,null,null,null,null,12]

{"sheet":"состав","index":1,"n_rows":36,"n_cols":33,"rows_kept":36,"cut":false,"hidden":false,"merged":[]}
[{"$f":"TEXT(План!$CB$15,\"ММММ\")","v":"Август"},null,8,null,37,25,24,24,24,24,24,24,24,24,24,24,24,24,24,24,24,24,24,24,24,35,28,30,24,24,24,74,24]
[{"$f":"План!$P$15","v":"2016-07-26"},null,null,null,1,1,1,1,1,1,1,1,1,1,1,1,1,1,1,1,1,1,1,1,1,1,1,1,1,1,1,1,1]
[{"$f":"WORKDAY(A2,1,)","v":"2016-07-27"},null,null,null,3,3,3,3,3,3,3,3,3,3,3,3,3,3,3,3,3,3,3,3,3,3,3,3,3,3,3,3,3]
[{"$f":"WORKDAY(A3,1,)","v":"2016-07-28"},null,null,null,8,8,8,8,8,8,8,8,8,8,8,8,8,8,8,8,8,8,8,8,8,8,8,8,8,8,8,8,8]
["2016-07-29"]
["2016-08-01"]
["2016-08-02",null,null,null,12,12,12,12,12,12,12,12,12,12,12,12,12,12,12,12,12,12,12,12,12,12,12,12,12,12,12,12,12]
["2016-08-03"]
["2016-08-04"]
["2016-08-05",null,null,null,null,null,null,null,null,null,null,null,null,null,null,null,null,null,null,null,null,null,null,null,null,3]
["2016-08-08"]
["2016-08-09"]
["2016-08-10"]
["2016-08-11"]
["2016-08-12"]
["2016-08-15"]
["2016-08-16"]
["2016-08-17"]
["2016-08-18"]
["2016-08-19",null,null,null,null,null,null,null,null,null,null,null,null,null,null,null,null,null,null,null,null,null,null,null,null,null,null,null,null,null,null,25]
["2016-08-22"]
["2016-08-23"]
["2016-08-24",null,8,null,13,1,null,null,null,null,null,null,null,null,null,null,null,null,null,null,null,null,null,null,null,8,4,6]
["2016-08-25"]
["2016-08-26",null,null,null,null,null,null,null,null,null,null,null,null,null,null,null,null,null,null,null,null,null,null,null,null,null,null,null,null,null,null,25]
["2016-08-29"]
["2016-08-30"]
["2016-08-31"]
["2016-09-01"]
[{"$f":"TEXT(EOMONTH($A$12,0)+1,\"ММММ\")","v":"Сентябрь"},null,8,null,13,1,null,null,null,null,null,null,null,null,null,null,null,null,null,null,null,null,null,null,null,8,4,6,1,null,null,50]
[385,"М255.0-1П1Л-1П1Л-2Т-0-0-1-10","9.00.01.000.000","9.00.01.000.001","9.00.01.000.002","9.00.01.000.003","9.00.01.000.004","9.00.01.000.005","9.00.01.000.006","9.00.01.000.007","9.00.01.000.008","9.00.01.000.009","9.00.01.000.010","9.00.01.000.011","9.00.01.000.012","9.00.01.000.013","9.00.01.000.014","9.00.01.000.015","9.00.01.000.016","10.00.000.000","10.00.000.001","10.00.000.002","10.00.000.003","10.00.000.004","10.00.000.005","10.00.000.006","10.00.000.007","10.00.000.008","10.00.000.009","10.00.000.010","10.00.000.011","10.00.000.012","10.00.000.013"]
["КТ3.647.005 "]
["КТ3.647.005-01"]
["КТ3.647.005-02"]
["КТ3.647.005-03"]
["КТ3.647.007"]

{"sheet":"Лист3","index":2,"n_rows":24,"n_cols":7,"rows_kept":24,"cut":false,"hidden":true,"merged":[]}
[10,"механический цех",1,"заг","2016-01-01","2016-03-06","2016-01-01"]
[20,"слесарно-сборчный цех",2,"мех","2016-01-02","2016-03-07",{"$f":"EOMONTH(G1,0)+1","v":"2016-02-01"}]
[30,"ЦО и ДП",3,"свр","2016-01-03","2016-03-08",{"$f":"EOMONTH(G2,0)+1","v":"2016-03-01"}]
[40,"малярно-сборочный цех",4,"мал","2016-01-04","2016-04-30",{"$f":"EOMONTH(G3,0)+1","v":"2016-04-01"}]
[50,"столярный цех",5,"сбр","2016-01-05","2016-05-01","2016-05-01"]
[60,"заготовительный участок",6,"гал","2016-01-06","2016-05-02","2016-06-01"]
[80,"сварочный участок",7,"покуп","2016-01-07","2016-05-07","2016-07-01"]
[91,"кабина машиниста",null,null,"2016-01-08","2016-05-08","2016-08-01"]
[400,"ОМТС",null,null,"2016-01-09","2016-05-09","2016-09-01"]
[110,"брак механичекий цех",null,null,"2016-01-10","2016-06-11","2016-10-01"]
[120,"брак слесарно-сборчный цех",null,null,"2016-02-20","2016-06-12","2016-11-01"]
[130,"брак ЦО и ДП",null,null,"2016-02-21","2016-06-13","2016-12-01"]
[140,"брак малярно-сборочный цех",null,null,"2016-02-22","2016-11-04","2017-01-01"]
[150,"брак столярный цех",null,null,"2016-02-23","2016-11-05","2017-02-01"]
[160,"брак заготовительный участок",null,null,"2016-12-31","2016-11-06","2017-03-01"]
[180,"брак сварочный участок",null,null,null,null,{"$f":"EOMONTH(G15,0)+1","v":"2017-04-01"}]
[191,"брак кабина машиниста",null,null,null,null,{"$f":"EOMONTH(G16,0)+1","v":"2017-05-01"}]
[610,"КБ",null,null,null,null,{"$f":"EOMONTH(G17,0)+1","v":"2017-06-01"}]
[630,"ТБ",null,null,null,null,"2017-07-01"]
[null,null,null,null,null,null,"2017-08-01"]
[null,"{42370;42435:42371;42436:42372;42437:42373;42490:42374;42491:42375;42492:42376;42497:42377;42498:42378;42499:42379;42532:42420;42533:42421;42534:42422;42678:42423;42679:42735;42680}",null,null,null,null,"2017-09-01"]
[null,null,null,null,null,null,"2017-10-01"]
[null,null,null,null,null,null,"2017-11-01"]
[null,null,null,null,null,null,"2017-12-01"]

{"sheet":"состав (2)","index":3,"n_rows":36,"n_cols":33,"rows_kept":36,"cut":false,"hidden":false,"merged":[]}
[{"$f":"TEXT(План!$CB$15,\"ММММ\")","v":"Август"},null,8,null,37,25,24,24,24,24,24,24,24,24,24,24,24,24,24,24,24,24,24,24,24,35,28,30,24,24,24,74,24]
[{"$f":"План!$P$15","v":"2016-07-26"},null,null,null,1,1,1,1,1,1,1,1,1,1,1,1,1,1,1,1,1,1,1,1,1,1,1,1,1,1,1,1,1]
[{"$f":"WORKDAY(A2,1,)","v":"2016-07-27"},null,null,null,3,3,3,3,3,3,3,3,3,3,3,3,3,3,3,3,3,3,3,3,3,3,3,3,3,3,3,3,3]
[{"$f":"WORKDAY(A3,1,)","v":"2016-07-28"},null,null,null,8,8,8,8,8,8,8,8,8,8,8,8,8,8,8,8,8,8,8,8,8,8,8,8,8,8,8,8,8]
["2016-07-29"]
["2016-08-01"]
["2016-08-02",null,null,null,12,12,12,12,12,12,12,12,12,12,12,12,12,12,12,12,12,12,12,12,12,12,12,12,12,12,12,12,12]
["2016-08-03"]
["2016-08-04"]
["2016-08-05",null,null,null,null,null,null,null,null,null,null,null,null,null,null,null,null,null,null,null,null,null,null,null,null,3]
["2016-08-08"]
["2016-08-09"]
["2016-08-10"]
["2016-08-11"]
["2016-08-12"]
["2016-08-15"]
["2016-08-16"]
["2016-08-17"]
["2016-08-18"]
["2016-08-19",null,null,null,null,null,null,null,null,null,null,null,null,null,null,null,null,null,null,null,null,null,null,null,null,null,null,null,null,null,null,25]
["2016-08-22"]
["2016-08-23"]
["2016-08-24",null,8,null,13,1,null,null,null,null,null,null,null,null,null,null,null,null,null,null,null,null,null,null,null,8,4,6]
["2016-08-25"]
["2016-08-26",null,null,null,null,null,null,null,null,null,null,null,null,null,null,null,null,null,null,null,null,null,null,null,null,null,null,null,null,null,null,25]
["2016-08-29"]
["2016-08-30"]
["2016-08-31"]
["2016-09-01"]
[{"$f":"TEXT(EOMONTH($A$12,0)+1,\"ММММ\")","v":"Сентябрь"},null,8,null,13,1,null,null,null,null,null,null,null,null,null,null,null,null,null,null,null,null,null,null,null,8,4,6,1,null,null,50]
[385,"М255.0-1П1Л-1П1Л-2Т-0-0-1-10","9.00.01.000.000","9.00.01.000.001","9.00.01.000.002","9.00.01.000.003","9.00.01.000.004","9.00.01.000.005","9.00.01.000.006","9.00.01.000.007","9.00.01.000.008","9.00.01.000.009","9.00.01.000.010","9.00.01.000.011","9.00.01.000.012","9.00.01.000.013","9.00.01.000.014","9.00.01.000.015","9.00.01.000.016","10.00.000.000","10.00.000.001","10.00.000.002","10.00.000.003","10.00.000.004","10.00.000.005","10.00.000.006","10.00.000.007","10.00.000.008","10.00.000.009","10.00.000.010","10.00.000.011","10.00.000.012","10.00.000.013"]
["КТ3.647.005 "]
["КТ3.647.005-01"]
["КТ3.647.005-02"]
["КТ3.647.005-03"]
["КТ3.647.007"]